lending/lending_fUSD_20250224
["ID","MTS","AMOUNT","RATE_DAILY","PERIOD"]
[354233621,1740355875724,-3948.16,0.00016767,2]
[354233622,1740355875733,-1442.77,0.00016767,2]
[354233623,1740355875742,-1118.95,0.00016767,2]
[354233624,1740355875751,-500.0,0.00016767,2]
[354233625,1740355875760,-1498.1,0.00016767,2]
[354233626,1740355875769,-500.0,0.00016767,2]
[354233627,1740355875778,-802.36,0.00016767,2]
[354233628,1740355875787,-500.0,0.00016767,2]
[354233629,1740355875796,-151.0,0.00016767,2]
[354233630,1740355875805,-630.35,0.00016767,2]
[354233631,1740355875814,-500.0,0.00016767,2]
[354233632,1740355875823,-151.0,0.00016767,2]
[354233633,1740355875832,-7277.32,0.00016767,2]
[354233634,1740355875841,-500.0,0.00016767,2]
[354233635,1740355875851,-500.0,0.00016767,2]
[354233636,1740355875859,-1388.3,0.00016767,2]
[354233637,1740355875870,-904.77,0.00016767,2]
[354233638,1740355875879,-2833.06,0.00016767,2]
[354233639,1740355875888,-1907.41,0.00016767,2]
[354233640,1740355875897,-805.21,0.00016767,2]
[354233641,1740355875906,-643.37,0.00016767,2]
[354233642,1740355875916,-673.24,0.00016767,2]
[354233643,1740355875926,-2482.98,0.00016767,2]
[354233644,1740355875935,-500.0,0.00016767,2]
[354233645,1740355875944,-2322.35,0.00016767,2]
[354233646,1740355875955,-1000.0,0.00016767,2]
[354233647,1740355875964,-753.89,0.00016767,2]
[354233648,1740355875973,-2093.62,0.00016767,2]
[354233649,1740355875984,-1340.96,0.00016767,2]
[354233650,1740355875996,-6699.2,0.00016767,2]
[354233651,1740355876006,-2598.08,0.00016767,2]
[354233652,1740355876015,-1299.28,0.00016767,2]
[354233653,1740355876025,-500.0,0.00016767,2]
[354233654,1740355876035,-2558.86,0.00016767,2]
[354233655,1740355876044,-630.52,0.00016767,2]
[354233656,1740355876053,-1207.6,0.00016767,2]
[354233657,1740355876064,-1591.28,0.00016767,2]
[354233658,1740355876073,-2067.48,0.00016767,2]
[354233659,1740355876082,-500.0,0.00016767,2]
[354233660,1740355876091,-2605.36,0.00016767,2]
[354233661,1740355876102,-1538.80884531,0.00016767,2]
[354233662,1740355877583,-474.84216034,0.00016027,2]
[354233663,1740355877595,-826.86783966,0.00016027,2]
[354233664,1740355877605,-500.0,0.00016438,2]
[354233665,1740355877615,-500.0,0.00016438,2]
[354233666,1740355877624,-104.36180034,0.00016438,2]
[354233667,1740355877656,-499.96819966,0.00016438,2]
[354233668,1740355877666,-148.05679868,0.00016438,2]
[354233669,1740355877679,-351.94320132,0.00016438,2]
[354233670,1740355877689,-500.0,0.00016438,2]
[354233671,1740355877699,-500.0,0.00016438,2]
[354233672,1740355877710,-500.0,0.0001652,2]
[354233673,1740355877720,-604.33,0.0001652,2]
[354233674,1740355877730,-500.0,0.0001652,2]
[354233675,1740355877741,-500.0,0.0001652,2]
[354233676,1740355877751,-500.0,0.0001652,2]
[354233677,1740355877762,-500.0,0.00016602,2]
[354233678,1740355877772,-604.33,0.00016602,2]
[354233679,1740355877781,-500.0,0.00016602,2]
[354233680,1740355877791,-151.0,0.00016602,2]
[354233681,1740355877800,-151.0,0.00016602,2]
[354233682,1740355877809,-500.0,0.00016602,2]
[354233683,1740355877819,-151.0,0.00016684,2]
[354233684,1740355877828,-151.0,0.00016684,2]
[354233685,1740355877838,-500.0,0.00016684,2]
[354233686,1740355877847,-604.33,0.00016684,2]
[354233687,1740355877856,-500.0,0.00016684,2]
[354233688,1740355877866,-151.0,0.00016684,2]
[354233689,1740355877876,-151.0,0.00016684,2]
[354233690,1740355877886,-500.0,0.00016684,2]
[354233691,1740355877896,-761.16115469,0.00016767,2]
[354233692,1740355877906,-1749.56,0.00016767,2]
[354233693,1740355877915,-2122.06,0.00016767,2]
[354233694,1740355877927,-1517.59,0.00016767,2]
[354233695,1740355877936,-3650.56,0.00016767,2]
[354233696,1740355877946,-500.0,0.00016767,2]
[354233697,1740355877956,-620.39,0.00016767,2]
[354233698,1740355877966,-1968.92,0.00016767,2]
[354233699,1740355877976,-500.0,0.00016767,2]
[354233700,1740355877988,-500.0,0.00016767,2]
[354233701,1740355877998,-3020.91,0.00016767,2]
[354233702,1740355878009,-597.06,0.00016767,2]
[354233703,1740355878019,-690.35,0.00016767,2]
[354233704,1740355878032,-2299.58992891,0.00016767,2]
[354233707,1740356140135,500.0,0.0002,120]
[354233708,1740356751829,500.0,0.00016438,60]
[354233729,1740357032211,-12368.03660048,9.99e-05,2]
[354233730,1740357032220,-150.0,9.999e-05,2]
[354233731,1740357032229,-21954.92254177,0.0001,2]
[354233732,1740357032240,-583.32405185,0.0001,2]
[354233733,1740357032269,-958.27880894,0.0001,2]
[354233734,1740357032280,-629.63474753,0.0001,2]
[354233735,1740357032440,-491.67,0.0001,2]
[354233736,1740357032542,-550.53239168,0.0001,2]
[354233737,1740357032553,-92267.34111549,0.0001,2]
[354233738,1740357032599,-2257.8845509,0.0001,2]
[354234232,1740357038155,-181.23863571,9.999e-05,2]
[354234233,1740357038167,-15170.05693585,0.0001,2]
[354234234,1740357038178,-1185.56286529,0.0001,2]
[354234235,1740357038189,-20400.41951514,0.0001,2]
[354234236,1740357038202,-9384.966935,0.0001,2]
[354234237,1740357038228,-29971.60738097,0.0001,2]
[354234238,1740357038248,-9119.17615205,0.0001,2]
[354234239,1740357038260,-20920.95882996,0.0001,2]
[354234240,1740357038284,-75978.01366071,0.0001,2]
[354234429,1740357040212,-7387.66373082,0.0001,2]
[354234431,1740357040225,-2645.63051666,0.0001,2]
[354234433,1740357040238,-2815.96502014,0.0001,2]
[354234435,1740357040250,-2149.29574093,0.0001,2]
[354234437,1740357040263,-8781.08421002,0.0001,2]
[354234439,1740357040275,-24547.15540961,0.0001,2]
[354234441,1740357040291,-35684.50328488,0.0001,2]
[354234443,1740357040304,-172963.34332414,0.0001,2]
[354234445,1740357040314,-607.84886978,0.0001,2]
[354234447,1740357040324,-6665.70415835,0.0001,2]
[354234449,1740357040334,-164.74943923,0.000109,2]
[354234450,1740357040345,-150.902072,0.00010958,2]
[354234452,1740357040356,-171.618749,0.00010958,2]
[354234454,1740357040367,-155.834979,0.00010958,2]
[354234456,1740357040381,-163.91,0.00010959,2]
[354234458,1740357040392,-2020.29931816,0.00011,2]
[354234459,1740357040403,-150.902072,0.00011041,2]
[354234461,1740357040415,-171.618749,0.00011041,2]
[354234463,1740357040426,-5080.46668512,0.00011099,2]
[354234465,1740357040436,-5080.46668507,0.00011099,2]
[354234467,1740357040447,-150.902072,0.00011123,2]
[354234469,1740357040459,-171.618749,0.00011123,2]
[354234471,1740357040469,-1125.58034881,0.00011204,3]
[354234473,1740357040479,-150.902072,0.00011205,2]
[354234474,1740357040490,-171.618749,0.00011205,2]
[354234476,1740357040500,-171.618749,0.00011287,2]
[354234478,1740357040510,-5080.46668507,0.00011367,2]
[354234480,1740357040521,-150.902072,0.00011369,2]
[354234482,1740357040531,-171.618749,0.00011369,2]
[354234484,1740357040543,-223.08436471,0.000115,2]
[354234486,1740357040553,-301.1,0.00012249,2]
[354234488,1740357040563,-156.09748521,0.000123,2]
[354234490,1740357040573,-156.0974852,0.000123,2]
[354234492,1740357040582,-156.0974852,0.000123,2]
[354234493,1740357040592,-156.0974852,0.000123,2]
[354234495,1740357040602,-156.0974852,0.000123,2]
[354234497,1740357040612,-156.0974852,0.000123,2]
[354234499,1740357040622,-156.0974852,0.000123,2]
[354234501,1740357040631,-156.0974852,0.000123,2]
[354234503,1740357040642,-156.0974852,0.000123,2]
[354234505,1740357040652,-156.0974852,0.000123,2]
[354234507,1740357040664,-2000.0,0.00012306,2]
[354234509,1740357040674,-156.0974852,0.00012435,2]
[354234511,1740357040684,-200.00425815,0.000125,3]
[354234513,1740357040694,-156.0974852,0.00012689,2]
[354234515,1740357040705,-887.46,0.00012716,2]
[354234517,1740357040715,-5861.32,0.00012767,2]
[354234519,1740357040726,-156.0974852,0.00012942,2]
[354234521,1740357040736,-550.0,0.00013,2]
[354234523,1740357040746,-156.0974852,0.00013196,2]
[354234524,1740357040756,-948.95,0.00013262,2]
[354234526,1740357040766,-150.79,0.0001336,2]
[354234528,1740357040777,-2301814.11366458,0.0001337,2]
[354234530,1740357040787,-163.99165798,0.00013373,2]
[354234532,1740357040797,-156.0974852,0.00013449,2]
[354234534,1740357040807,-1000.0,0.000135,2]
[354234536,1740357040817,-2000.0,0.00013582,2]
[354234538,1740357040827,-199.75,0.00013699,2]
[354234540,1740357040837,-156.0974852,0.00013703,2]
[354234543,1740357040847,-156.0974852,0.00013956,2]
[354234546,1740357040859,-156.0974852,0.0001421,2]
[354234548,1740357041311,-887.46,0.00014306,2]
[354234549,1740357041338,-150.0,0.00014384,2]
[354234550,1740357041367,-223.0843647,0.000144,2]
[354234551,1740357041390,-156.0974852,0.00014463,2]
[354234552,1740357041402,-150.0,0.00014554,2]
[354234553,1740357041411,-150.0,0.00014597,2]
[354234554,1740357041422,-150.0,0.00014622,2]
[354234555,1740357041431,-150.0,0.0001465,2]
[354234556,1740357041440,-156.0974852,0.00014717,2]
[354234557,1740357041451,-5843.45909989,0.000148,5]
[354234558,1740357041459,-233467.826545,0.000148,2]
[354234559,1740357041468,-150.0,0.00014817,2]
[354234560,1740357041477,-85833.7774963,0.000149,2]
[354234561,1740357041486,-150.0,0.00014957,2]
[354234562,1740357041495,-5297.97421673,0.00015,14]
[354234563,1740357041504,-600.0,0.00015,2]
[354234564,1740357041513,-150.0,0.0001503,2]
[354234565,1740357041522,-1000.0,0.00015075,2]
[354234566,1740357041531,-150.0,0.00015118,2]
[354234567,1740357041540,-150.0,0.00015128,2]
[354234568,1740357041548,-150.0,0.00015214,2]
[354234569,1740357041557,-225.4210954,0.00015214,2]
[354234570,1740357041567,-158.45815384,0.00015214,2]
[354234571,1740357041576,-1098.67,0.00015241,2]
[354234572,1740357041585,-6861.15,0.00015286,2]
[354234573,1740357041594,-150.0,0.00015337,2]
[354234574,1740357041603,-200.0,0.0001537,2]
[354234575,1740357041611,-150.0,0.00015384,2]
[354234576,1740357041620,-150.0,0.00015394,2]
[354234577,1740357041630,-163.32,0.00015469,2]
[354234578,1740357041639,-250.0,0.00015479,2]
[354234579,1740357041649,-948.95,0.00015526,2]
[354234580,1740357041658,-150.0,0.00015561,2]
[354234581,1740357041667,-150.0,0.0001561,2]
[354234582,1740357041676,-150.0,0.00015674,2]
[354234583,1740357041685,-150.0,0.00015679,2]
[354234584,1740357041695,-150.0,0.00015696,2]
[354234585,1740357041704,-150.0,0.00015798,2]
[354234586,1740357041712,-500.0,0.00015836,2]
[354234587,1740357041721,-150.0,0.00015841,2]
[354234588,1740357041730,-887.46,0.00015895,2]
[354234589,1740357041739,-20358.22796825,0.00016,2]
[354234590,1740357041748,-4006.74411515,0.00016,2]
[354234591,1740357041757,-7112.79073361,0.00016,10]
[354234592,1740357041766,-169.379507,0.00016017,2]
[354234593,1740357041775,-150.0,0.0001602,2]
[354234594,1740357041784,-150.0,0.00016034,2]
[354234595,1740357041793,-1003.72,0.0001608,2]
[354234596,1740357041802,-150.0,0.00016116,2]
[354234597,1740357041811,-344.9684203,0.00016164,2]
[354234598,1740357041821,-493.67000266,0.00016164,2]
[354234599,1740357041830,-344.9684203,0.00016219,2]
[354234600,1740357041838,-493.67000266,0.00016219,2]
[354234601,1740357041847,-150.0,0.00016246,2]
[354234602,1740357041856,-150.0,0.00016257,2]
[354234603,1740357041865,-673.02,0.00016267,7]
[354234604,1740357041874,-673.02,0.00016267,7]
[354234605,1740357041883,-673.02,0.00016267,7]
[354234606,1740357041892,-673.02,0.00016267,7]
[354234607,1740357041901,-1496.0,0.000163,2]
[354234608,1740357041910,-344.9684203,0.00016301,2]
[354234609,1740357041920,-493.67000266,0.00016301,2]
[354234610,1740357041929,-80063.78582931,0.0001632,2]
[354234611,1740357041938,-5773.40882825,0.00016338,2]
[354234612,1740357041947,-385.5764765,0.00016338,2]
[354234613,1740357041956,-172.46205707,0.00016338,2]
[354234614,1740357041965,-40566.4875,0.00016338,2]
[354234615,1740357041974,-7500.0,0.00016338,2]
[354234616,1740357041983,-1000.0,0.00016338,2]
[354234617,1740357041992,-153.0,0.00016352,2]
[354234618,1740357042001,-153.0,0.00016352,2]
[354234619,1740357042010,-153.0,0.00016352,2]
[354234620,1740357042019,-153.0,0.00016352,2]
[354234621,1740357042028,-153.0,0.00016352,2]
[354234622,1740357042037,-153.0,0.00016352,2]
[354234623,1740357042046,-153.0,0.00016352,2]
[354234624,1740357042054,-153.0,0.00016352,2]
[354234625,1740357042063,-153.0,0.00016352,2]
[354234626,1740357042072,-153.0,0.00016352,2]
[354234627,1740357042081,-153.0,0.00016352,2]
[354234628,1740357042090,-153.0,0.00016352,2]
[354234629,1740357042099,-344.9684203,0.00016384,2]
[354234630,1740357042108,-493.67000266,0.00016384,2]
[354234631,1740357042117,-150.0,0.00016402,2]
[354234632,1740357042127,-375.46739345,0.0001642,2]
[354234633,1740357042135,-5773.40882818,0.00016429,2]
[354234634,1740357042145,-150.0,0.00016431,2]
[354234635,1740357042153,-1107.85940443,0.00016432,2]
[354234636,1740357042162,-1000.0,0.00016437,2]
[354234637,1740357042171,-1000.0,0.00016437,2]
[354234638,1740357042180,-1000.0,0.00016437,2]
[354234639,1740357042189,-500.0,0.00016438,2]
[354234640,1740357042198,-507.84847434,0.00016438,2]
[354234641,1740357042207,-500.0,0.00016438,2]
[354234642,1740357042216,-500.0,0.00016438,2]
[354234643,1740357042225,-150.902072,0.00016438,2]
[354234644,1740357042235,-171.618749,0.00016438,2]
[354234645,1740357042244,-758.69,0.00016438,2]
[354234646,1740357042254,-500.0,0.00016438,2]
[354234647,1740357042263,-500.0,0.00016438,2]
[354234648,1740357042271,-653.77,0.00016438,2]
[354234649,1740357042281,-500.0,0.00016438,2]
[354234650,1740357042290,-500.0,0.00016438,2]
[354234651,1740357042298,-500.0,0.00016438,2]
[354234652,1740357042307,-500.0,0.00016438,2]
[354234653,1740357042316,-500.0,0.00016438,2]
[354234654,1740357042326,-674.91,0.00016438,2]
[354234655,1740357042335,-566.37568736,0.00016438,2]
[354234656,1740357042343,-500.0,0.00016438,2]
[354234657,1740357042356,-580.21,0.00016438,2]
[354234658,1740357042369,-500.0,0.00016438,2]
[354234659,1740357042379,-500.0,0.00016438,2]
[354234660,1740357042389,-500.0,0.00016438,2]
[354234661,1740357042399,-500.0,0.00016438,2]
[354234662,1740357042409,-500.0,0.00016438,2]
[354234663,1740357042419,-500.0,0.00016438,2]
[354234664,1740357042429,-500.0,0.00016438,2]
[354234665,1740357042439,-500.0,0.00016438,2]
[354234666,1740357042450,-500.0,0.00016438,2]
[354234667,1740357042460,-500.0,0.00016438,2]
[354234668,1740357042470,-500.0,0.00016438,2]
[354234669,1740357042479,-500.0,0.00016438,2]
[354234670,1740357042488,-679.31,0.00016438,2]
[354234671,1740357042497,-500.0,0.00016438,2]
[354234672,1740357042507,-500.0,0.00016438,2]
[354234673,1740357042516,-500.0,0.00016438,2]
[354234674,1740357042525,-500.0,0.00016438,2]
[354234675,1740357042534,-510.60029744,0.00016438,2]
[354234676,1740357042543,-520.74647553,0.00016438,2]
[354234677,1740357042553,-500.0,0.00016438,2]
[354234678,1740357042562,-500.0,0.00016438,2]
[354234679,1740357042571,-500.0,0.00016438,2]
[354234680,1740357042580,-500.0,0.00016438,2]
[354234681,1740357042590,-500.0,0.00016438,2]
[354234682,1740357042599,-500.0,0.00016438,2]
[354234683,1740357042608,-705.18,0.00016438,2]
[354234684,1740357042617,-535.94,0.00016438,2]
[354234685,1740357042626,-500.0,0.00016438,2]
[354234686,1740357042635,-632.59,0.00016438,2]
[354234687,1740357042645,-1009.44,0.00016438,2]
[354234688,1740357042654,-500.0,0.00016438,2]
[354234689,1740357042663,-500.0,0.00016438,2]
[354234690,1740357042672,-500.0,0.00016438,2]
[354234691,1740357042681,-505.19402938,0.00016438,2]
[354234692,1740357042691,-500.0,0.00016438,2]
[354234693,1740357042701,-234.73890305,0.00016438,2]
[354234694,1740357042710,-500.0,0.00016438,2]
[354234695,1740357042720,-500.0,0.00016438,2]
[354234696,1740357042729,-500.0,0.00016438,2]
[354234697,1740357042738,-540.19465263,0.00016438,2]
[354234698,1740357042748,-649.15,0.00016438,2]
[354234699,1740357042757,-500.0,0.00016438,2]
[354234700,1740357042766,-500.0,0.00016438,2]
[354234701,1740357042775,-500.0,0.00016438,2]
[354234702,1740357042784,-604.57,0.00016438,2]
[354234703,1740357042793,-500.0,0.00016438,2]
[354234704,1740357042803,-500.0,0.00016438,2]
[354234705,1740357042812,-1127.79,0.00016438,2]
[354234706,1740357042821,-500.0,0.00016438,2]
[354234707,1740357042831,-500.0,0.00016438,2]
[354234708,1740357042841,-500.0,0.00016438,2]
[354234709,1740357042851,-500.0,0.00016438,2]
[354234710,1740357042860,-254.29618897,0.00016438,2]
[354234711,1740357042869,-500.0,0.00016438,2]
[354234712,1740357042878,-227.33793918,0.00016438,2]
[354234713,1740357042888,-505.64610049,0.00016438,2]
[354234714,1740357042897,-500.0,0.00016438,2]
[354234715,1740357042906,-500.0,0.00016438,2]
[354234716,1740357042917,-258.09622942,0.00016438,2]
[354234717,1740357042926,-500.0,0.00016438,2]
[354234718,1740357042936,-500.0,0.00016438,2]
[354234719,1740357042945,-500.0,0.00016438,2]
[354234720,1740357042954,-500.0,0.00016438,2]
[354234722,1740357042964,-500.0,0.00016438,2]
[354234724,1740357042974,-500.0,0.00016438,2]
[354234725,1740357042983,-500.0,0.00016438,2]
[354234726,1740357042992,-500.0,0.00016438,2]
[354234727,1740357043002,-500.0,0.00016438,2]
[354234728,1740357043011,-500.0,0.00016438,2]
[354234729,1740357043021,-500.0,0.00016438,2]
[354234730,1740357043031,-500.0,0.00016438,2]
[354234731,1740357043041,-500.0,0.00016438,2]
[354234732,1740357043050,-507.90733075,0.00016438,2]
[354234734,1740357043059,-500.0,0.00016438,2]
[354234735,1740357043068,-500.0,0.00016438,2]
[354234736,1740357043077,-500.0,0.00016438,2]
[354234737,1740357043086,-309.86418825,0.00016438,2]
[354234738,1740357043095,-500.0,0.00016438,2]
[354234739,1740357043105,-500.0,0.00016438,2]
[354234740,1740357043114,-500.0,0.00016438,2]
[354234741,1740357043123,-500.0,0.00016438,2]
[354234742,1740357043133,-500.0,0.00016438,2]
[354234743,1740357043142,-500.0,0.00016438,2]
[354234744,1740357043151,-500.0,0.00016438,2]
[354234745,1740357043161,-500.0,0.00016438,2]
[354234746,1740357043172,-594.55,0.00016438,2]
[354234747,1740357043182,-500.0,0.00016438,2]
[354234748,1740357043191,-500.0,0.00016438,2]
[354234749,1740357043201,-500.0,0.00016438,2]
[354234750,1740357043210,-511.15,0.00016438,2]
[354234751,1740357043220,-323.78509279,0.00016438,2]
[354234752,1740357043230,-500.0,0.00016438,2]
[354234753,1740357043239,-500.0,0.00016438,2]
[354234754,1740357043249,-500.0,0.00016438,2]
[354234755,1740357043259,-500.0,0.00016438,2]
[354234756,1740357043269,-500.0,0.00016438,2]
[354234757,1740357043278,-500.0,0.00016438,2]
[354234758,1740357043287,-500.0,0.00016438,2]
[354234759,1740357043297,-500.0,0.00016438,2]
[354234760,1740357043307,-552.80053991,0.00016438,2]
[354234761,1740357043316,-500.0,0.00016438,2]
[354234762,1740357043326,-500.0,0.00016438,2]
[354234763,1740357043336,-500.0,0.00016438,2]
[354234764,1740357043345,-500.0,0.00016438,2]
[354234765,1740357043355,-500.0,0.00016438,2]
[354234766,1740357043365,-500.0,0.00016438,2]
[354234767,1740357043375,-500.0,0.00016438,2]
[354234768,1740357043386,-500.0,0.00016438,2]
[354234769,1740357043396,-500.0,0.00016438,2]
[354234770,1740357043406,-500.0,0.00016438,2]
[354234771,1740357043418,-1128.75,0.00016438,2]
[354234772,1740357043428,-500.0,0.00016438,2]
[354234773,1740357043438,-2217.78,0.00016438,2]
[354234774,1740357043447,-500.0,0.00016438,2]
[354234775,1740357043458,-500.0,0.00016438,2]
[354234776,1740357043468,-500.0,0.00016438,2]
[354234777,1740357043477,-500.0,0.00016438,2]
[354234778,1740357043487,-500.0,0.00016438,2]
[354234779,1740357043497,-500.0,0.00016438,2]
[354234780,1740357043507,-1816.95,0.00016438,2]
[354234782,1740357043516,-985.08,0.00016438,2]
[354234783,1740357043526,-933.31,0.00016438,2]
[354234784,1740357043535,-500.0,0.00016438,2]
[354234785,1740357043546,-500.0,0.00016438,2]
[354234786,1740357043555,-500.0,0.00016438,2]
[354234787,1740357043565,-523.38676433,0.00016438,2]
[354234789,1740357043574,-500.0,0.00016438,2]
[354234791,1740357043584,-500.0,0.00016438,2]
[354234793,1740357043593,-500.0,0.00016438,2]
[354234795,1740357043603,-1037.3,0.00016438,2]
[354234797,1740357043612,-500.0,0.00016438,2]
[354234799,1740357043622,-500.0,0.00016438,2]
[354234801,1740357043631,-530.9,0.00016438,2]
[354234803,1740357043640,-918.08,0.00016438,2]
[354234806,1740357043650,-500.0,0.00016438,2]
[354234808,1740357043659,-500.0,0.00016438,2]
[354234810,1740357043669,-500.0,0.00016438,2]
[354234812,1740357043679,-844.57,0.00016438,2]
[354234814,1740357043688,-500.0,0.00016438,2]
[354234816,1740357043697,-500.0,0.00016438,2]
[354234818,1740357043706,-500.0,0.00016438,2]
[354234819,1740357043715,-500.0,0.00016438,2]
[354234820,1740357043725,-736.64,0.00016438,2]
[354234821,1740357043736,-889.93,0.00016438,2]
[354234822,1740357043745,-500.0,0.00016438,2]
[354234823,1740357043756,-500.0,0.00016438,2]
[354234824,1740357043765,-500.0,0.00016438,2]
[354234825,1740357043774,-741.58,0.00016438,2]
[354234826,1740357043783,-500.0,0.00016438,2]
[354234827,1740357043793,-500.0,0.00016438,2]
[354234828,1740357043802,-500.0,0.00016438,2]
[354234829,1740357043812,-300.38294297,0.00016438,2]
[354234830,1740357043822,-500.0,0.00016438,2]
[354234831,1740357043831,-706.45,0.00016438,2]
[354234832,1740357043840,-500.0,0.00016438,2]
[354234833,1740357043850,-1635.1,0.00016438,2]
[354234834,1740357043859,-1136.01,0.00016438,2]
[354234835,1740357043869,-680.4,0.00016438,2]
[354234836,1740357043878,-544.75,0.00016438,2]
[354234837,1740357043888,-636.87,0.00016438,2]
[354234838,1740357043897,-716.28,0.00016438,2]
[354234839,1740357043907,-500.0,0.00016438,2]
[354234840,1740357043916,-500.0,0.00016438,2]
[354234841,1740357043926,-647.69,0.00016438,2]
[354234842,1740357043935,-1116.09,0.00016438,2]
[354234843,1740357043944,-1000.0,0.00016438,2]
[354234844,1740357043953,-625.51,0.00016438,2]
[354234845,1740357043962,-796.64,0.00016438,2]
[354234846,1740357043972,-566.86,0.00016438,2]
[354234847,1740357043982,-500.0,0.00016438,2]
[354234848,1740357043991,-500.0,0.00016438,2]
[354234849,1740357044000,-500.0,0.00016438,2]
[354234850,1740357044010,-1041.45,0.00016438,2]
[354234851,1740357044019,-506.83,0.00016438,2]
[354234852,1740357044028,-748.16,0.00016438,2]
[354234853,1740357044038,-509.33,0.00016438,2]
[354234854,1740357044047,-500.0,0.00016438,2]
[354234855,1740357044056,-1017.97,0.00016438,2]
[354234856,1740357044066,-500.0,0.00016438,2]
[354234857,1740357044075,-649.47,0.00016438,2]
[354234858,1740357044084,-1101.66,0.00016438,2]
[354234859,1740357044094,-500.0,0.00016438,2]
[354234860,1740357044103,-500.0,0.00016438,2]
[354234861,1740357044112,-500.0,0.00016438,2]
[354234862,1740357044122,-500.0,0.00016438,2]
[354234863,1740357044131,-500.0,0.00016438,2]
[354234864,1740357044140,-532.98,0.00016438,2]
[354234865,1740357044150,-734.46,0.00016438,2]
[354234866,1740357044159,-584.9,0.00016438,2]
[354234867,1740357044170,-500.0,0.00016438,2]
[354234868,1740357044179,-500.0,0.00016438,2]
[354234869,1740357044189,-500.0,0.00016438,2]
[354234870,1740357044198,-1097.06,0.00016438,2]
[354234871,1740357044208,-1254.0,0.00016438,2]
[354234872,1740357044217,-500.0,0.00016438,2]
[354234873,1740357044227,-500.0,0.00016438,2]
[354234874,1740357044236,-717.94,0.00016438,2]
[354234875,1740357044245,-500.0,0.00016438,2]
[354234876,1740357044255,-657.94,0.00016438,2]
[354234877,1740357044263,-860.79,0.00016438,2]
[354234878,1740357044273,-500.0,0.00016438,2]
[354234879,1740357044282,-582.78,0.00016438,2]
[354234880,1740357044291,-500.0,0.00016438,2]
[354234881,1740357044300,-1231.34,0.00016438,2]
[354234882,1740357044310,-500.0,0.00016438,2]
[354234883,1740357044319,-500.0,0.00016438,2]
[354234884,1740357044328,-1132.71,0.00016438,2]
[354234885,1740357044338,-608.67,0.00016438,2]
[354234886,1740357044348,-683.96,0.00016438,2]
[354234887,1740357044358,-500.0,0.00016438,2]
[354234888,1740357044370,-1323.83,0.00016438,2]
[354234889,1740357044380,-1029.7,0.00016438,2]
[354234890,1740357044390,-768.98,0.00016438,2]
[354234891,1740357044579,-500.0,0.00016438,2]
[354234892,1740357044600,-511.25,0.00016438,2]
[354234893,1740357044609,-500.0,0.00016438,2]
[354234894,1740357044619,-500.0,0.00016438,2]
[354234895,1740357044628,-736.52,0.00016438,2]
[354234896,1740357044638,-637.46,0.00016438,2]
[354234897,1740357044648,-1221.17,0.00016438,2]
[354234898,1740357044657,-500.0,0.00016438,2]
[354234899,1740357044666,-500.0,0.00016438,2]
[354234900,1740357044676,-721.71,0.00016438,2]
[354234901,1740357044685,-530.74,0.00016438,2]